[Event "*** Titled Tuesday 3|2 Blitz (Early)"]
[Site "Chess.com"]
[Date "2016.12.06"]
[Round "4"]
[White "MyleneFarmer"]
[Black "Holden-Caulfield"]
[Result "0-1"]
[WhiteElo "2378"]
[BlackElo "2479"]
[TimeControl "180+2"]
[EndTime "11:51:09 PST"]
[Termination "Holden-Caulfield won by resignation"]

1. e4 {[%clk 0:02:41.7]} 1... d6 {[%clk 0:03:01.9]} 2. d4 {[%clk 0:02:42.3]}
2... Nf6 {[%clk 0:03:02.4]} 3. Nc3 {[%clk 0:02:43.7]} 3... e5 {[%clk 0:03:03.5]}
4. Nf3 {[%clk 0:02:44.9]} 4... Nbd7 {[%clk 0:03:04.2]} 5. Bc4 {[%clk 0:02:46.4]}
5... Be7 {[%clk 0:03:05.3]} 6. O-O {[%clk 0:02:47.8]} 6... O-O {[%clk
0:03:06.4]} 7. Re1 {[%clk 0:02:49.3]} 7... c6 {[%clk 0:03:07.4]} 8. a4 {[%clk
0:02:50.8]} 8... a5 {[%clk 0:03:08.6]} 9. h3 {[%clk 0:02:52]} 9... exd4 {[%clk
0:03:09.5]} 10. Nxd4 {[%clk 0:02:52.3]} 10... Nc5 {[%clk 0:03:10.1]} 11. Qf3
{[%clk 0:02:48.1]} 11... Be6 {[%clk 0:03:10.7]} 12. Bxe6 {[%clk 0:02:46.3]}
12... fxe6 {[%clk 0:03:11.9]} 13. Qg3 {[%clk 0:02:46.2]} 13... d5 {[%clk
0:03:01.1]} 14. exd5 {[%clk 0:02:42.5]} 14... exd5 {[%clk 0:03:01.8]} 15. Bh6
{[%clk 0:02:30.6]} 15... Rf7 {[%clk 0:03:02.4]} 16. Nf5 {[%clk 0:02:21]} 16...
Bf8 {[%clk 0:02:23]} 17. Bg5 {[%clk 0:02:00.1]} 17... Kh8 {[%clk 0:02:14.7]} 18.
Qh4 {[%clk 0:01:51]} 18... Qd7 {[%clk 0:02:09.6]} 19. Ng3 {[%clk 0:01:47.8]}
19... Ne6 {[%clk 0:02:01.9]} 20. Rad1 {[%clk 0:01:42.9]} 20... Nxg5 {[%clk
0:01:58.4]} 21. Qxg5 {[%clk 0:01:44.2]} 21... Bc5 {[%clk 0:01:58.8]} 22. Rd2
{[%clk 0:01:39.8]} 22... Raf8 {[%clk 0:01:58]} 23. Rde2 {[%clk 0:01:30.4]} 23...
Ng8 {[%clk 0:01:48.8]} 24. Nd1 {[%clk 0:01:28.4]} 24... h6 {[%clk 0:01:34.3]}
25. Qd2 {[%clk 0:01:22.7]} 25... Qc7 {[%clk 0:01:31.8]} 26. Kh2 {[%clk
0:01:21.4]} 26... Bd6 {[%clk 0:01:31.8]} 27. Qd3 {[%clk 0:01:07.7]} 27... Nf6
{[%clk 0:01:30]} 28. Kh1 {[%clk 0:00:57.5]} 28... Nd7 {[%clk 0:01:08.2]} 29. Nf5
{[%clk 0:00:42.4]} 29... Rxf5 {[%clk 0:01:00.8]} 30. Re8 {[%clk 0:00:44]} 30...
Rf7 {[%clk 0:00:40]} 31. Qg6 {[%clk 0:00:40.3]} 31... Nf6 {[%clk 0:00:37.5]} 32.
R8e6 {[%clk 0:00:38.5]} 32... Ne4 {[%clk 0:00:35.9]} 33. R1xe4 {[%clk
0:00:31.2]} 33... dxe4 {[%clk 0:00:36.2]} 34. Rxd6 {[%clk 0:00:32.7]} 34... Rd7
{[%clk 0:00:31.4]} 35. Rxd7 {[%clk 0:00:29.4]} 35... Qxd7 {[%clk 0:00:32.6]} 36.
Ne3 {[%clk 0:00:19.5]} 36... Qf7 {[%clk 0:00:33.5]} 37. Qxe4 {[%clk 0:00:19.2]}
37... Qxf2 {[%clk 0:00:34.6]} 38. Ng4 {[%clk 0:00:20.2]} 38... Qf1+ {[%clk
0:00:34.7]} 39. Kh2 {[%clk 0:00:21.7]} 39... Qf4+ {[%clk 0:00:36.3]} 40. Qxf4
{[%clk 0:00:23.3]} 40... Rxf4 {[%clk 0:00:37.5]} 41. b3 {[%clk 0:00:25]} 41...
Re4 {[%clk 0:00:36.9]} 42. Nf2 {[%clk 0:00:20.5]} 42... Re2 {[%clk 0:00:37.8]}
43. Nd3 {[%clk 0:00:22.1]} 43... Rxc2 {[%clk 0:00:38.5]} 44. Ne5 {[%clk
0:00:20.9]} 44... Rc3 {[%clk 0:00:38.3]} 45. Nc4 {[%clk 0:00:22.3]} 45... Rxb3
{[%clk 0:00:35.3]} 46. Nxa5 {[%clk 0:00:22.7]} 46... Rb4 {[%clk 0:00:36.6]} 47.
Kg3 {[%clk 0:00:23.2]} 47... Rxa4 {[%clk 0:00:37.7]} 48. Nxb7 {[%clk 0:00:24.1]}
48... g6 {[%clk 0:00:35.9]} 49. Nd8 {[%clk 0:00:24.9]} 49... Rc4 {[%clk
0:00:35.3]} 50. Kf3 {[%clk 0:00:26.4]} 50... Kg7 {[%clk 0:00:33.3]} 51. Ke3
{[%clk 0:00:27.5]} 51... Rc1 {[%clk 0:00:32.3]} 52. Ne6+ {[%clk 0:00:28]} 52...
Kf6 {[%clk 0:00:32.8]} 53. Nf4 {[%clk 0:00:29.4]} 53... g5 {[%clk 0:00:31.1]}
54. Nd3 {[%clk 0:00:30.9]} 54... Rg1 {[%clk 0:00:32.2]} 55. Kf2 {[%clk
0:00:31.2]} 55... Ra1 {[%clk 0:00:32.9]} 56. Nc5 {[%clk 0:00:31.1]} 56... Ke5
{[%clk 0:00:31.3]} 57. Nd3+ {[%clk 0:00:31.1]} 57... Kd4 {[%clk 0:00:32.1]} 58.
Nb4 {[%clk 0:00:31.7]} 58... Rc1 {[%clk 0:00:28.5]} 59. Ke2 {[%clk 0:00:31.8]}
59... c5 {[%clk 0:00:28.2]} 60. Nc6+ {[%clk 0:00:29.7]} 60... Ke4 {[%clk
0:00:28.6]} 61. Kd2 {[%clk 0:00:29.8]} 61... Rg1 {[%clk 0:00:29.4]} 62. g4
{[%clk 0:00:30]} 62... Rg3 {[%clk 0:00:29.6]} 63. Ne7 {[%clk 0:00:30.8]} 63...
Rxh3 {[%clk 0:00:30]} 64. Nf5 {[%clk 0:00:32.4]} 64... Kf4 {[%clk 0:00:30.7]}
65. Ng7 {[%clk 0:00:31.8]} 65... Kxg4 {[%clk 0:00:31.5]} 0-1

[Event "*** Titled Tuesday 3|2 Blitz (Early)"]
[Site "Chess.com"]
[Date "2016.12.06"]
[Round "4"]
[White "Astaneh"]
[Black "avto24"]
[Result "1/2-1/2"]
[WhiteElo "2455"]
[BlackElo "2302"]
[TimeControl "180+2"]
[EndTime "11:51:19 PST"]
[Termination "Game drawn - insufficient material"]

1. d4 {[%clk 0:03:02]} 1... d5 {[%clk 0:03:02]} 2. c4 {[%clk 0:03:02.3]} 2... c6
{[%clk 0:03:03.1]} 3. Nf3 {[%clk 0:03:03.2]} 3... Nf6 {[%clk 0:03:03.2]} 4. Nc3
{[%clk 0:03:04.1]} 4... e6 {[%clk 0:03:04]} 5. e3 {[%clk 0:03:03.8]} 5... Nbd7
{[%clk 0:03:04.2]} 6. Bd2 {[%clk 0:03:03.8]} 6... Bd6 {[%clk 0:03:05.1]} 7. Rc1
{[%clk 0:03:04.5]} 7... O-O {[%clk 0:03:05.5]} 8. Bd3 {[%clk 0:03:04.9]} 8...
dxc4 {[%clk 0:03:06]} 9. Bxc4 {[%clk 0:03:06.8]} 9... b5 {[%clk 0:03:05.6]} 10.
Bb3 {[%clk 0:03:08.1]} 10... a6 {[%clk 0:03:06.3]} 11. O-O {[%clk 0:03:08.9]}
11... c5 {[%clk 0:03:07]} 12. a4 {[%clk 0:03:07.3]} 12... c4 {[%clk 0:03:04.4]}
13. Bc2 {[%clk 0:03:07.6]} 13... Qb6 {[%clk 0:02:56.9]} 14. e4 {[%clk
0:03:03.8]} 14... e5 {[%clk 0:02:56.3]} 15. Bg5 {[%clk 0:02:56.5]} 15... b4
{[%clk 0:02:36.8]} 16. dxe5 {[%clk 0:02:38]} 16... bxc3 {[%clk 0:01:53.2]} 17.
exd6 {[%clk 0:02:38.3]} 17... cxb2 {[%clk 0:01:53.8]} 18. Rb1 {[%clk 0:02:39.5]}
18... Bb7 {[%clk 0:01:49.1]} 19. Re1 {[%clk 0:02:34]} 19... Rfe8 {[%clk
0:01:46.8]} 20. e5 {[%clk 0:02:29.9]} 20... Bxf3 {[%clk 0:01:47]} 21. Qxf3
{[%clk 0:02:31.8]} 21... Nxe5 {[%clk 0:01:30.2]} 22. Rxe5 {[%clk 0:02:32.1]}
22... Rxe5 {[%clk 0:01:31.3]} 23. Bxf6 {[%clk 0:00:32.2]} 23... gxf6 {[%clk
0:01:10.1]} 24. Qxa8+ {[%clk 0:00:29.5]} 24... Kg7 {[%clk 0:01:11.2]} 25. d7
{[%clk 0:00:28.3]} 25... Re2 {[%clk 0:01:05.9]} 26. Rf1 {[%clk 0:00:25.7]} 26...
Rd2 {[%clk 0:01:01.6]} 27. Bf5 {[%clk 0:00:11.7]} 27... c3 {[%clk 0:00:55.4]}
28. Qc8 {[%clk 0:00:12.3]} 28... Qd4 {[%clk 0:00:23.4]} 29. g3 {[%clk
0:00:13.7]} 29... Rd1 {[%clk 0:00:19.8]} 30. Rxd1 {[%clk 0:00:10.5]} 30... Qxd1+
{[%clk 0:00:20.8]} 31. Kg2 {[%clk 0:00:12.2]} 31... Qd5+ {[%clk 0:00:22]} 32. f3
{[%clk 0:00:13.8]} 32... Qxf5 {[%clk 0:00:23.2]} 33. d8=Q {[%clk 0:00:10.8]}
33... Qxc8 {[%clk 0:00:22.5]} 34. Qxc8 {[%clk 0:00:12.7]} 34... b1=Q {[%clk
0:00:23.7]} 35. Qxc3 {[%clk 0:00:14.4]} 35... Qa2+ {[%clk 0:00:25.1]} 36. Kh3
{[%clk 0:00:16.1]} 36... Qxa4 {[%clk 0:00:25.9]} 37. Qc7 {[%clk 0:00:17.5]}
37... Qb5 {[%clk 0:00:25.9]} 38. f4 {[%clk 0:00:18.6]} 38... a5 {[%clk
0:00:26.4]} 39. Kg4 {[%clk 0:00:20.1]} 39... h5+ {[%clk 0:00:26.4]} 40. Kh4
{[%clk 0:00:20.4]} 40... a4 {[%clk 0:00:27.3]} 41. Qa7 {[%clk 0:00:19.6]} 41...
Qe2 {[%clk 0:00:20.3]} 42. h3 {[%clk 0:00:20.6]} 42... Qb5 {[%clk 0:00:20.2]}
43. Qa8 {[%clk 0:00:18.7]} 43... Qb3 {[%clk 0:00:20.1]} 44. Qa5 {[%clk
0:00:15.2]} 44... a3 {[%clk 0:00:19.8]} 45. Qxh5 {[%clk 0:00:16.9]} 45... a2
{[%clk 0:00:21.1]} 46. Qg4+ {[%clk 0:00:18.2]} 46... Kf8 {[%clk 0:00:21.1]} 47.
Qc8+ {[%clk 0:00:19.9]} 47... Ke7 {[%clk 0:00:22.3]} 48. Qc7+ {[%clk 0:00:21]}
48... Ke6 {[%clk 0:00:23.6]} 49. Qc6+ {[%clk 0:00:22.3]} 49... Kf5 {[%clk
0:00:24.6]} 50. Qa6 {[%clk 0:00:10.3]} 50... Ke4 {[%clk 0:00:18]} 51. Qxf6
{[%clk 0:00:11.1]} 51... Kf3 {[%clk 0:00:18.3]} 52. g4 {[%clk 0:00:06.8]} 52...
Kg2 {[%clk 0:00:19]} 53. Kg5 {[%clk 0:00:07.1]} 53... Kxh3 {[%clk 0:00:19]} 54.
Qh6+ {[%clk 0:00:05.6]} 54... Kg3 {[%clk 0:00:19.6]} 55. Qf6 {[%clk 0:00:05.4]}
55... Qa3 {[%clk 0:00:12.8]} 56. Qa1 {[%clk 0:00:05.1]} 56... Qa5+ {[%clk
0:00:11.9]} 57. f5 {[%clk 0:00:06.3]} 57... Qd2+ {[%clk 0:00:11.9]} 58. Kf6
{[%clk 0:00:07]} 58... Qa5 {[%clk 0:00:12.4]} 59. g5 {[%clk 0:00:07.3]} 59...
Kg4 {[%clk 0:00:13.2]} 60. Qg1+ {[%clk 0:00:07.1]} 60... Kf3 {[%clk 0:00:14.5]}
61. Qf1+ {[%clk 0:00:08.4]} 61... Ke4 {[%clk 0:00:15.7]} 62. Qh1+ {[%clk
0:00:09.4]} 62... Kd3 {[%clk 0:00:16.2]} 63. Qa1 {[%clk 0:00:10.5]} 63... Kc2
{[%clk 0:00:15.7]} 64. g6 {[%clk 0:00:10.9]} 64... fxg6 {[%clk 0:00:16.2]} 65.
fxg6 {[%clk 0:00:12.8]} 65... Qc3+ {[%clk 0:00:17.2]} 66. Qxc3+ {[%clk
0:00:13.6]} 66... Kxc3 {[%clk 0:00:19.1]} 67. g7 {[%clk 0:00:15.5]} 67... a1=Q
{[%clk 0:00:20.5]} 68. g8=Q {[%clk 0:00:17.3]} 68... Kd3+ {[%clk 0:00:21.9]} 69.
Kf7 {[%clk 0:00:19.2]} 69... Qa2+ {[%clk 0:00:23]} 70. Kg7 {[%clk 0:00:20.6]}
70... Qxg8+ {[%clk 0:00:24.9]} 71. Kxg8 {[%clk 0:00:22.5]} 1/2-1/2

[Event "*** Titled Tuesday 3|2 Blitz (Early)"]
[Site "Chess.com"]
[Date "2016.12.06"]
[Round "4"]
[White "Rumpel-VK"]
[Black "dretch"]
[Result "1/2-1/2"]
[WhiteElo "2465"]
[BlackElo "2604"]
[TimeControl "180+2"]
[EndTime "11:53:10 PST"]
[Termination "Game drawn by repetition"]

1. e4 {[%clk 0:03:01.9]} 1... e6 {[%clk 0:03:00.8]} 2. Bb5 {[%clk 0:03:01.7]}
2... Qg5 {[%clk 0:02:57.6]} 3. Bf1 {[%clk 0:03:02.1]} 3... c5 {[%clk 0:02:24]}
4. d4 {[%clk 0:02:57.2]} 4... Qh4 {[%clk 0:02:21.4]} 5. Nf3 {[%clk 0:02:45.1]}
5... Qxe4+ {[%clk 0:02:21.6]} 6. Be2 {[%clk 0:02:46.6]} 6... cxd4 {[%clk
0:02:19.3]} 7. O-O {[%clk 0:02:47.2]} 7... Nc6 {[%clk 0:02:20.5]} 8. Nbd2 {[%clk
0:02:44.2]} 8... Qg6 {[%clk 0:02:12.1]} 9. Nc4 {[%clk 0:02:39.9]} 9... Bc5
{[%clk 0:02:07]} 10. Nce5 {[%clk 0:02:35.3]} 10... Nxe5 {[%clk 0:02:00.6]} 11.
Nxe5 {[%clk 0:02:36.2]} 11... Qf6 {[%clk 0:02:01.9]} 12. Nd3 {[%clk 0:02:14.7]}
12... d6 {[%clk 0:01:48.6]} 13. Nxc5 {[%clk 0:01:55.6]} 13... dxc5 {[%clk
0:01:50.5]} 14. Bb5+ {[%clk 0:01:56.4]} 14... Kf8 {[%clk 0:01:52]} 15. c3 {[%clk
0:01:54.7]} 15... a6 {[%clk 0:01:43.5]} 16. Be2 {[%clk 0:01:51]} 16... Bd7
{[%clk 0:01:42.3]} 17. cxd4 {[%clk 0:01:50.6]} 17... cxd4 {[%clk 0:01:16.8]} 18.
Bf3 {[%clk 0:01:49.8]} 18... Bc6 {[%clk 0:01:10.3]} 19. Bxc6 {[%clk 0:01:44.4]}
19... bxc6 {[%clk 0:01:12.2]} 20. b3 {[%clk 0:01:39.4]} 20... g6 {[%clk
0:01:11.1]} 21. Ba3+ {[%clk 0:01:30.9]} 21... Kg7 {[%clk 0:01:10.8]} 22. Rc1
{[%clk 0:01:32.1]} 22... Ne7 {[%clk 0:01:03.9]} 23. Bxe7 {[%clk 0:01:29.7]}
23... Qxe7 {[%clk 0:01:05.8]} 24. Qxd4+ {[%clk 0:01:30.4]} 24... e5 {[%clk
0:01:06.9]} 25. Qe4 {[%clk 0:01:19.8]} 25... c5 {[%clk 0:01:03.8]} 26. f4 {[%clk
0:01:04.9]} 26... Rhe8 {[%clk 0:01:01.3]} 27. Rfe1 {[%clk 0:01:05.8]} 27... Rad8
{[%clk 0:00:55.6]} 28. fxe5 {[%clk 0:01:04.5]} 28... Rd2 {[%clk 0:00:54.1]} 29.
Qe3 {[%clk 0:00:57.3]} 29... Rd5 {[%clk 0:00:45.3]} 30. Qc3 {[%clk 0:00:48.6]}
30... Rxe5 {[%clk 0:00:43.5]} 31. Rxe5 {[%clk 0:00:48.8]} 31... Qxe5 {[%clk
0:00:44.2]} 32. Qxc5 {[%clk 0:00:49.6]} 32... Qb2 {[%clk 0:00:14.9]} 33. Qc3+
{[%clk 0:00:44.9]} 33... Qxc3 {[%clk 0:00:16]} 34. Rxc3 {[%clk 0:00:46.3]} 34...
Re2 {[%clk 0:00:15.8]} 35. a4 {[%clk 0:00:44.1]} 35... Rb2 {[%clk 0:00:16.3]}
36. Rc6 {[%clk 0:00:40.6]} 36... a5 {[%clk 0:00:17.1]} 37. Rc5 {[%clk
0:00:41.3]} 37... Rxb3 {[%clk 0:00:18.1]} 38. Rxa5 {[%clk 0:00:42.2]} 38... Ra3
{[%clk 0:00:18.2]} 39. Ra7 {[%clk 0:00:40.1]} 39... g5 {[%clk 0:00:18]} 40. h3
{[%clk 0:00:41.1]} 40... h5 {[%clk 0:00:19.1]} 41. a5 {[%clk 0:00:42.3]} 41...
Kg6 {[%clk 0:00:19.2]} 42. a6 {[%clk 0:00:42.8]} 42... f6 {[%clk 0:00:19.1]} 43.
Ra8 {[%clk 0:00:43.2]} 43... Kf5 {[%clk 0:00:19.8]} 44. a7 {[%clk 0:00:42.9]}
44... g4 {[%clk 0:00:17.8]} 45. hxg4+ {[%clk 0:00:42.9]} 45... hxg4 {[%clk
0:00:18.8]} 46. Kf2 {[%clk 0:00:41.1]} 46... Kf4 {[%clk 0:00:05.8]} 47. g3+
{[%clk 0:00:41.6]} 47... Kf5 {[%clk 0:00:06.5]} 48. Ke2 {[%clk 0:00:42.2]} 48...
Ra2+ {[%clk 0:00:04.9]} 49. Ke3 {[%clk 0:00:43]} 49... Ra3+ {[%clk 0:00:05.9]}
50. Kd4 {[%clk 0:00:44]} 50... Ra4+ {[%clk 0:00:06.6]} 51. Kd3 {[%clk
0:00:44.8]} 51... Ra3+ {[%clk 0:00:07.5]} 52. Kd4 {[%clk 0:00:46.1]} 52... Ra4+
{[%clk 0:00:08.7]} 53. Kc3 {[%clk 0:00:47.3]} 53... Ra1 {[%clk 0:00:09.8]} 54.
Kb2 {[%clk 0:00:46.2]} 54... Ra6 {[%clk 0:00:10.4]} 55. Kb3 {[%clk 0:00:47.3]}
55... Rb6+ {[%clk 0:00:10.9]} 56. Ka4 {[%clk 0:00:48]} 56... Ra6+ {[%clk
0:00:05.6]} 57. Kb5 {[%clk 0:00:48.9]} 57... Ra1 {[%clk 0:00:07.5]} 58. Kb6
{[%clk 0:00:50]} 58... Rb1+ {[%clk 0:00:08.4]} 59. Kc6 {[%clk 0:00:51.1]} 59...
Rc1+ {[%clk 0:00:08.8]} 60. Kd6 {[%clk 0:00:52.1]} 60... Ra1 {[%clk 0:00:08.1]}
61. Ke7 {[%clk 0:00:53.1]} 61... Ke4 {[%clk 0:00:06.3]} 62. Kxf6 {[%clk
0:00:50.6]} 62... Kf3 {[%clk 0:00:07.6]} 63. Ke6 {[%clk 0:00:43.3]} 63... Kxg3
{[%clk 0:00:07.3]} 64. Kd6 {[%clk 0:00:44.3]} 64... Rd1+ {[%clk 0:00:06.7]} 65.
Kc6 {[%clk 0:00:45.2]} 65... Rc1+ {[%clk 0:00:07.4]} 66. Kb7 {[%clk 0:00:46.3]}
66... Rb1+ {[%clk 0:00:08.1]} 67. Kc7 {[%clk 0:00:47.6]} 67... Ra1 {[%clk
0:00:08.7]} 68. Kb6 {[%clk 0:00:47.7]} 68... Rb1+ {[%clk 0:00:09.3]} 69. Kc5
{[%clk 0:00:48.8]} 69... Rc1+ {[%clk 0:00:09.8]} 70. Kd4 {[%clk 0:00:49.8]}
70... Rc7 {[%clk 0:00:09.8]} 71. Ke3 {[%clk 0:00:48.1]} 71... Re7+ {[%clk
0:00:10.2]} 72. Kd4 {[%clk 0:00:49]} 72... Rg7 {[%clk 0:00:11]} 73. Ke5 {[%clk
0:00:46.4]} 73... Rf7 {[%clk 0:00:10.9]} 74. Ke6 {[%clk 0:00:46.5]} 74... Rb7
{[%clk 0:00:11.5]} 75. Kd6 {[%clk 0:00:47.1]} 75... Rh7 {[%clk 0:00:10.8]} 76.
Kc6 {[%clk 0:00:48.1]} 76... Rh6+ {[%clk 0:00:06.8]} 77. Kb5 {[%clk 0:00:48.8]}
77... Rh5+ {[%clk 0:00:07.3]} 78. Kb6 {[%clk 0:00:49.9]} 78... Rh6+ {[%clk
0:00:08.5]} 79. Kc5 {[%clk 0:00:51.1]} 79... Rh5+ {[%clk 0:00:07.9]} 80. Kb4
{[%clk 0:00:51.9]} 80... Rh7 {[%clk 0:00:08.6]} 81. Kb5 {[%clk 0:00:48.8]} 81...
Kh3 {[%clk 0:00:07.3]} 82. Kb6 {[%clk 0:00:49.4]} 82... Rh6+ {[%clk 0:00:08.3]}
83. Ka5 {[%clk 0:00:50.2]} 83... Rh5+ {[%clk 0:00:08.6]} 84. Ka6 {[%clk
0:00:51.3]} 84... Rh6+ {[%clk 0:00:09.8]} 85. Kb5 {[%clk 0:00:52.4]} 85... Rh5+
{[%clk 0:00:07.2]} 86. Kc6 {[%clk 0:00:53.3]} 86... Rh6+ {[%clk 0:00:08.1]} 87.
Kb7 {[%clk 0:00:54.3]} 87... Rh7+ {[%clk 0:00:08.9]} 88. Kb6 {[%clk 0:00:53.9]}
88... Rh6+ {[%clk 0:00:09.6]} 89. Ka5 {[%clk 0:00:54.1]} 89... Rh5+ {[%clk
0:00:09.9]} 90. Kb6 {[%clk 0:00:52.4]} 90... Rh6+ {[%clk 0:00:10.8]} 91. Kb7
{[%clk 0:00:53.3]} 91... Rh7+ {[%clk 0:00:11.7]} 92. Kc6 {[%clk 0:00:54.3]}
92... g3 {[%clk 0:00:10.7]} 93. Kb6 {[%clk 0:00:54.5]} 93... Rh6+ {[%clk
0:00:11.9]} 94. Kb7 {[%clk 0:00:55.3]} 94... Rh7+ {[%clk 0:00:12.9]} 95. Kb6
{[%clk 0:00:56.6]} 95... Rh6+ {[%clk 0:00:13.3]} 96. Kb7 {[%clk 0:00:57.9]}
96... Rh7+ {[%clk 0:00:14.2]} 97. Kb6 {[%clk 0:00:59.1]} 97... Rh6+ {[%clk
0:00:15.3]} 98. Kb7 {[%clk 0:01:00.4]} 98... Rh7+ {[%clk 0:00:16]} 99. Ka6
{[%clk 0:01:01.5]} 99... Rh6+ {[%clk 0:00:16.6]} 100. Ka5 {[%clk 0:01:01.3]}
100... Rh5+ {[%clk 0:00:16.8]} 101. Kb6 {[%clk 0:01:02.3]} 101... Rh6+ {[%clk
0:00:17.7]} 102. Kb7 {[%clk 0:01:03.3]} 102... Rh7+ {[%clk 0:00:18.8]} 103. Ka6
{[%clk 0:01:04.3]} 103... Rh6+ {[%clk 0:00:19.8]} 104. Kb5 {[%clk 0:01:05.5]}
104... Rh7 {[%clk 0:00:20.1]} 105. Kb6 {[%clk 0:01:06.5]} 105... Rh6+ {[%clk
0:00:20.7]} 1/2-1/2

[Event "*** Titled Tuesday 3|2 Blitz (Early)"]
[Site "Chess.com"]
[Date "2016.12.06"]
[Round "5"]
[White "Cecile_Haussernot"]
[Black "ZivkovicN"]
[Result "1-0"]
[WhiteElo "2270"]
[BlackElo "2403"]
[TimeControl "180+2"]
[EndTime "11:55:26 PST"]
[Termination "Cecile_Haussernot won by resignation"]

1. e4 {[%clk 0:03:02]} 1... c5 {[%clk 0:02:57.8]} 2. Nf3 {[%clk 0:03:01.5]} 2...
d6 {[%clk 0:02:59]} 3. d4 {[%clk 0:03:00.2]} 3... cxd4 {[%clk 0:02:58.6]} 4.
Nxd4 {[%clk 0:03:01.6]} 4... Nf6 {[%clk 0:02:56.6]} 5. Nc3 {[%clk 0:03:02.9]}
5... a6 {[%clk 0:02:51.7]} 6. h3 {[%clk 0:02:56.3]} 6... e6 {[%clk 0:02:51.2]}
7. g4 {[%clk 0:02:55.8]} 7... b5 {[%clk 0:02:52.2]} 8. Bg2 {[%clk 0:02:56.1]}
8... Bb7 {[%clk 0:02:52.4]} 9. O-O {[%clk 0:02:44.2]} 9... Nfd7 {[%clk 0:02:52]}
10. Be3 {[%clk 0:02:40.2]} 10... Be7 {[%clk 0:02:46.4]} 11. f4 {[%clk
0:02:41.5]} 11... O-O {[%clk 0:02:47.8]} 12. f5 {[%clk 0:02:40.2]} 12... Nc6
{[%clk 0:02:44]} 13. fxe6 {[%clk 0:02:39.1]} 13... fxe6 {[%clk 0:02:35.8]} 14.
Nxe6 {[%clk 0:02:39.4]} 1-0

[Event "*** Titled Tuesday 3|2 Blitz (Early)"]
[Site "Chess.com"]
[Date "2016.12.06"]
[Round "5"]
[White "DanielNaroditsky"]
[Black "Tesla37"]
[Result "1-0"]
[WhiteElo "2705"]
[BlackElo "2602"]
[TimeControl "180+2"]
[EndTime "11:56:33 PST"]
[Termination "DanielNaroditsky won by resignation"]

1. d4 {[%clk 0:03:02]} 1... Nf6 {[%clk 0:03:00.3]} 2. Bf4 {[%clk 0:03:03.2]}
2... e6 {[%clk 0:02:58.5]} 3. e3 {[%clk 0:03:03.7]} 3... d5 {[%clk 0:02:59.5]}
4. Nd2 {[%clk 0:03:01.1]} 4... Bd6 {[%clk 0:03:00.5]} 5. Bg3 {[%clk 0:03:02.3]}
5... c5 {[%clk 0:02:59.5]} 6. Ngf3 {[%clk 0:03:02.8]} 6... Nc6 {[%clk
0:02:58.9]} 7. c3 {[%clk 0:03:03.1]} 7... O-O {[%clk 0:02:53.2]} 8. Bb5 {[%clk
0:03:04.2]} 8... Bxg3 {[%clk 0:02:50.4]} 9. hxg3 {[%clk 0:03:04.8]} 9... Bd7
{[%clk 0:02:51.9]} 10. Bxc6 {[%clk 0:03:01.6]} 10... Bxc6 {[%clk 0:02:51.7]} 11.
Ne5 {[%clk 0:03:03]} 11... Nd7 {[%clk 0:02:35.9]} 12. Qh5 {[%clk 0:02:50.1]}
12... h6 {[%clk 0:02:35.5]} 13. Ndf3 {[%clk 0:02:51.7]} 13... f6 {[%clk
0:02:27.8]} 14. Ng4 {[%clk 0:02:32.1]} 14... Qe7 {[%clk 0:02:23.3]} 15. Qg6
{[%clk 0:02:27.6]} 15... Rfc8 {[%clk 0:01:55.5]} 16. Nxh6+ {[%clk 0:02:25.7]}
16... Kf8 {[%clk 0:01:56.2]} 17. Nf5 {[%clk 0:02:26.9]} 1-0

[Event "*** Titled Tuesday 3|2 Blitz (Early)"]
[Site "Chess.com"]
[Date "2016.12.06"]
[Round "5"]
[White "dretch"]
[Black "biostatistician"]
[Result "1-0"]
[WhiteElo "2611"]
[BlackElo "2466"]
[TimeControl "180+2"]
[EndTime "11:57:59 PST"]
[Termination "dretch won by checkmate"]

1. d4 {[%clk 0:03:02]} 1... Nf6 {[%clk 0:03:00.4]} 2. c4 {[%clk 0:03:03.5]} 2...
g6 {[%clk 0:03:01.9]} 3. Nc3 {[%clk 0:03:04.9]} 3... Bg7 {[%clk 0:03:03.5]} 4.
e4 {[%clk 0:03:06.5]} 4... d6 {[%clk 0:03:04.9]} 5. Nf3 {[%clk 0:03:08.1]} 5...
O-O {[%clk 0:03:06.8]} 6. h3 {[%clk 0:03:09.3]} 6... e5 {[%clk 0:03:07.6]} 7.
dxe5 {[%clk 0:03:11.2]} 7... dxe5 {[%clk 0:03:08.2]} 8. Qxd8 {[%clk 0:03:13.1]}
8... Rxd8 {[%clk 0:03:09.5]} 9. Bg5 {[%clk 0:03:15]} 9... c6 {[%clk 0:02:57.8]}
10. Nxe5 {[%clk 0:03:16.1]} 10... Re8 {[%clk 0:02:58.9]} 11. O-O-O {[%clk
0:03:17.3]} 11... Na6 {[%clk 0:02:58.8]} 12. Nf3 {[%clk 0:03:18.4]} 12... h6
{[%clk 0:02:51.3]} 13. Be3 {[%clk 0:03:18.3]} 13... Nxe4 {[%clk 0:02:47.7]} 14.
Nxe4 {[%clk 0:03:20.2]} 14... Rxe4 {[%clk 0:02:48.8]} 15. Rd8+ {[%clk
0:03:21.4]} 15... Kh7 {[%clk 0:02:49.8]} 16. h4 {[%clk 0:03:23.1]} 16... f6
{[%clk 0:02:38.4]} 17. Bd3 {[%clk 0:03:15.1]} 17... Rg4 {[%clk 0:01:59.8]} 18.
h5 {[%clk 0:03:13]} 18... f5 {[%clk 0:02:01.1]} 19. hxg6+ {[%clk 0:03:11.3]}
19... Kxg6 {[%clk 0:02:03]} 20. Nh4+ {[%clk 0:03:11.2]} 20... Kf6 {[%clk
0:01:58.5]} 21. f3 {[%clk 0:02:57.6]} 21... Rg3 {[%clk 0:01:58.4]} 22. Bf4
{[%clk 0:02:51.3]} 22... Rg5 {[%clk 0:01:59.1]} 23. Re1 {[%clk 0:02:50.5]} 23...
Rh5 {[%clk 0:01:51]} 24. Bd6 {[%clk 0:02:26.5]} 24... f4 {[%clk 0:01:16.1]} 25.
Be7+ {[%clk 0:02:19.3]} 25... Kf7 {[%clk 0:01:07.3]} 26. Bg6# {[%clk 0:02:21.2]}
1-0